Cogmind - Beta 13 @@@ ROGUE MODE // 2024.04.13 @ 23:36:40 Player: Sketti Result: Self-destructed Performance ------------- Evolutions (2) 1000 Regions Visited (6) 1200 Robots Destroyed (49) 245 Value Destroyed (1277) 1277 Prototype IDs (2) 40 Alien Tech Used (0) 0 Bonus (200) 200 TOTAL SCORE: 3962 Bonus ------- Entered Garrisons 200 Cogmind --------- Core Integrity 154/550 Matter 192/300 Energy 100/100 System Corruption 0% Temperature Cool (0) Movement Core (50) Location -8/Storage Parts ------- > --- POWER (1) -------- (None) > --- PROPULSION (3) --- (None) > --- UTILITY (5) ------ Advanced Visual Processing Unit Hacking Suite > --- WEAPON (2) ------- (None) > --- INVENTORY (5) ---- Large Matter Pod (150) Improved Terrain Scanner Field Recycling Unit (0) Field Laser Grenade Launcher Peak State ------------ > --- POWER ------------ Light Deuterium Engine > --- PROPULSION ------- VTOL Module Cesium-ion Thruster > --- UTILITY ---------- Advanced Visual Processing Unit Hacking Suite Hacking Suite Hacking Suite Drone Bay > --- WEAPON ----------- Beam Cannon Mini Grenade Launcher > --- INVENTORY -------- Large Matter Pod Improved Terrain Scanner Field Recycling Unit Field Laser Grenade Launcher [Rating: 29] Favorites ----------- Power Light Deuterium Engine Engine Light Deuterium Engine Propulsion Improved Treads Treads Improved Treads Leg Titanium Leg Wheel Wheel Flight Unit VTOL Module Utility Large Storage Unit Device Improved Terrain Scanner Storage Large Storage Unit Processor Signal Interpreter Hackware Hacking Suite Protection Improved Light Armor Plating Weapon Beam Cannon Energy Gun Field Laser Energy Cannon Beam Cannon Ballistic Gun Light Assault Rifle Launcher Mini Grenade Launcher Build | -11 -10 -9 -8 -8 -8 -8 ------- Run | Yrd Mat Mat Mat Gar Mat Sto Slots Evolved 4 | . . 2 2 . . . Power . | . . . . . . . Propulsion 1 | . . . 1 . . . Utility 3 | . . 2 1 . . . Weapon . | . . . . . . . Parts Attached 47 | 9 7 11 6 8 4 2 Power 5 | 1 . 3 . 1 . . Engine 5 | 1 . 3 . 1 . . Core . | . . . . . . . Reactor . | . . . . . . . Propulsion 15 | 4 2 2 1 5 . 1 Treads 7 | 2 2 2 1 . . . Leg 1 | . . . . . . 1 Wheel 2 | 2 . . . . . . Hover . | . . . . . . . Flight 5 | . . . . 5 . . Utility 15 | 2 2 3 4 1 2 1 Device 6 | 1 . 3 . 1 . 1 Storage 2 | 1 1 . . . . . Processor 3 | . 1 . 2 . . . Hackware 3 | . . . 1 . 2 . Protection 1 | . . . 1 . . . Artifact . | . . . . . . . Weapon 12 | 2 3 3 1 1 2 . Energy Gun 3 | . . 2 1 . . . Energy Cannon 4 | . 2 1 . . 1 . Ballistic Gun 2 | 2 . . . . . . Ballistic Cannon . | . . . . . . . Launcher 3 | . 1 . . 1 1 . Special Weapon . | . . . . . . . Impact Weapon . | . . . . . . . Slashing Weapon . | . . . . . . . Piercing Weapon . | . . . . . . . Special Melee Weapon . | . . . . . . . Unidentified Prototypes . | . . . . . . . Parts Lost 19 | . 1 2 6 . 2 8 Power 3 | . 1 1 . . . 1 Propulsion 6 | . . . 2 . 1 3 Utility 6 | . . . 3 . 1 2 Weapon 4 | . . 1 1 . . 2 Highest Loss Streak 8 | . 1 1 4 . 2 8 To Critical Strikes . | . . . . . . . Average Slot Usage (%) 87 | . 97 92 81 72 86 81 Engine 8 | . 11 7 9 9 9 7 Treads 17 | . 17 21 21 . . . Wheel 2 | . 10 . . . . . Flight 2 | . . . . 25 23 15 Device 11 | . 13 21 5 7 5 5 Storage 9 | . 14 11 9 3 . . Processor 10 | . . 11 15 9 9 9 Hackware 3 | . . . . 9 24 25 Protection 1 | . . . 4 . . . Energy Gun 6 | . . 2 14 3 . . Energy Cannon 9 | . 18 17 . . 5 8 Ballistic Gun 1 | . 4 . . . . . Launcher 2 | . 4 . . 5 10 8 Naked Turns . | . . . . . . . Heaviest Build 40 | 12 30 40 36 8 9 15 Greatest Support 69 | 20 46 46 69 19 19 17 Greatest Overweight (x) 2 | 1 2 . 1 . . 1 Average Overweight (x) . | . . . . . . . Largest Inventory Capacity 15 | 8 15 15 15 15 5 5 Average Capacity 13 | 7 14 15 15 8 5 5 Most Carried 15 | 2 15 15 15 15 5 5 Average Carried 12 | . 12 14 14 6 5 5 Final Capacity 15 | 8 15 15 15 5 5 5 Final Carried 15 | 1 15 15 15 5 5 5 Class Distribution -------------------- 62% | Mutant 21% | Skirmisher 7% | Hacker-Mutant 3% | Scavenger-Skirmisher 3% | Hacker-Sprinter Dominant Class ---------------- Mutant | -10/Materials Mutant | -9/Materials Skirmisher | -8/Materials Sprinter | -8/Garrison Hacker-Sprinter | -8/Materials Hacker-Mutant | -8/Storage Resources | -11 -10 -9 -8 -8 -8 -8 ----------- Run | Yrd Mat Mat Mat Gar Mat Sto Matter Collected 835 | 252 305 120 71 . 57 30 Remotely . | . . . . . . . Salvage Created 1590 | 22 265 698 433 . 67 105 Parts 94 | 4 22 38 21 . 4 5 Haulers Intercepted 1 | . 1 . . . . . Recyclers Shooed 1 | . . . . . . 1 Parts Field Recycled . | . . . . . . . Retrieved Matter . | . . . . . . . Parts Self-Destructed . | . . . . . . . Prevented . | . . . . . . . Kills | -11 -10 -9 -8 -8 -8 -8 ------- Run | Yrd Mat Mat Mat Gar Mat Sto Combat Hostiles Destroyed 34 | . 8 15 8 . 1 2 Guns 9 | . . 1 8 . . . Cannons 23 | . 7 14 . . 1 1 AOE 2 | . 1 . . . . 1 Classes Destroyed 11 | 1 5 3 2 . . . Worker 3 | . 1 . . . . 2 Builder 2 | . . . 1 . . 1 Tunneler 2 | 1 . . . . 1 . Hauler 1 | . 1 . . . . . Recycler 2 | . . 2 . . . . Watcher 5 | . 2 1 1 . . 1 Swarmer 12 | . 5 6 1 . . . Grunt 12 | . 3 4 5 . . . Duelist 1 | . . 1 . . . . Sentry 8 | . . 4 1 . 1 2 Hunter 1 | . . . 1 . . . Best Kill Streak 6 | 1 3 6 2 . 2 5 Combat Bots Only 4 | . 3 4 2 . 1 2 Max Kills in Single Turn 2 | 1 2 2 1 . 1 2 Gunslinging . | . . . . . . . Exploded 1 | . 1 . . . . 1 Melee . | . . . . . . . Uniques/NPCs Destroyed . | . . . . . . . Combat | -11 -10 -9 -8 -8 -8 -8 -------- Run | Yrd Mat Mat Mat Gar Mat Sto Hostile Shots Fired 236 | . 36 55 81 12 12 40 Missed 65 | . 8 20 18 5 4 10 Damage Taken 2543 | . 331 451 935 47 122 657 Core 539 | . 79 64 96 5 . 295 Absorbed by Shields 14 | . . . . 14 . . Regen/Repaired (Parts) 196 | . . 196 . . . . Core Remaining (%) 84 | 100 68 84 . . . . Volleys Fired 163 | 1 29 37 63 . 13 20 Largest 2 | 2 2 2 2 . 1 2 Hottest 120 | 40 120 120 119 . 60 90 Shots Fired 255 | 2 49 70 96 . 13 25 Gun 119 | 2 13 8 96 . . . Cannon 122 | . 32 62 . . 13 15 Launcher 14 | . 4 . . . . 10 Special . | . . . . . . . Kinetic 15 | 2 13 . . . . . Thermal 226 | . 32 70 96 . 13 15 Explosive 14 | . 4 . . . . 10 Electromagnetic . | . . . . . . . Robot Hit Streak 19 | 1 8 19 6 . 10 8 Robot Miss Streak 5 | . 3 5 5 . 1 2 Penetration Max . | . . . . . . . Secondary Targets 1 | . . . 1 . . . Max Gunslinging Chain 1 | . . . 1 . . . Shots Hit Robots 152 | 1 27 42 54 . 12 16 Core Hits 72 | 1 15 23 20 . 3 10 Critical Kills 1 | 1 . . . . . . Critical Parts Destroyed . | . . . . . . . Critical Strikes 5 | 1 . 1 3 . . . Burn 4 | . . 1 3 . . . Destroy 1 | 1 . . . . . . Melee Attacks . | . . . . . . . Impact . | . . . . . . . Slashing . | . . . . . . . Piercing . | . . . . . . . Sneak Attacks . | . . . . . . . Combat Hostiles . | . . . . . . . Follow-up Attacks . | . . . . . . . Damage Inflicted 2992 | 13 496 752 939 . 231 561 Guns 993 | 13 54 15 911 . . . Cannons 1456 | . 317 734 . . 231 174 Explosions 512 | . 125 . . . . 387 Melee . | . . . . . . . Ramming 31 | . . 3 28 . . . Kinetic 67 | 13 54 . . . . . Thermal 2382 | . 317 749 911 . 231 174 Explosive 512 | . 125 . . . . 387 Electromagnetic . | . . . . . . . Impact . | . . . . . . . Slashing . | . . . . . . . Piercing . | . . . . . . . Highest Corruption . | . . . . . . . Average Corruption . | . . . . . . . Corruption Purged . | . . . . . . . Corruption Blocked . | . . . . . . . Overload Shots . | . . . . . . . Overflow Damage 55 | . 13 . . . 6 36 Projectiles 19 | . 13 . . . 6 . Explosions 36 | . . . . . . 36 Melee . | . . . . . . . Knockbacks . | . . . . . . . Impact . | . . . . . . . Kinetic . | . . . . . . . Secondary . | . . . . . . . Self-Inflicted Damage 259 | . 47 . . . . 212 Shots 8 | . 2 . . . . 6 Rammed 7 | . . 1 6 . . . Targets Rammed 7 | . . 1 6 . . . Kicked . | . . . . . . . Crushed . | . . . . . . . Highest Temperature 626 | . 300 507 626 . 211 61 Average Temperature 146 | . 117 129 191 . 131 23 Received Heat Transfer 801 | . 78 93 432 . 36 162 Effects 38 | . 4 4 30 . . . Shutdowns 6 | . . 1 5 . . . Energy Bleed 12 | . 2 2 8 . . . Interference 8 | . 2 . 6 . . . Matter Decay 1 | . . . 1 . . . Short Circuit 1 | . . . 1 . . . Damage (minor) 2 | . . 1 1 . . . Damage (major) 7 | . . . 7 . . . Damage (core) 1 | . . . 1 . . . Siege Activations . | . . . . . . . Robots Corrupted . | . . . . . . . Combat Hostiles . | . . . . . . . Parts Fried . | . . . . . . . Impact Corruptions . | . . . . . . . Robots Melted . | . . . . . . . Combat Hostiles . | . . . . . . . Parts Melted 10 | . . 6 1 . 3 . Heat Transferred 5476 | . 666 1665 2294 . 481 370 Parts Sabotaged . | . . . . . . . Parts Stolen . | . . . . . . . Parts Stripped . | . . . . . . . Power Chain Reactions . | . . . . . . . Alert | -11 -10 -9 -8 -8 -8 -8 ------- Run | Yrd Mat Mat Mat Gar Mat Sto Peak Influence 349 | 5 181 349 217 67 68 214 Initial 142 | . 3 35 142 52 32 28 Average 124 | 2 71 225 119 57 28 46 Maximum Alert Level 1 | . . 1 1 . . 1 Low Security (%) 74 | 100 100 38 75 100 100 96 Level 1 25 | . . 61 24 . . 3 Level 2 . | . . . . . . . Level 3 . | . . . . . . . Level 4 . | . . . . . . . Level 5 . | . . . . . . . High Security . | . . . . . . . Max Security . | . . . . . . . Squads Dispatched 7 | . 2 1 2 . . 2 Investigation 1 | . . . 1 . . . Extermination . | . . . . . . . Reinforcement 5 | . 2 1 1 . . 1 Assault . | . . . . . . . Garrison 1 | . . . . . . 1 Intercept . | . . . . . . . Searches Triggered . | . . . . . . . Construction Impeded . | . . . . . . . Haulers Reinforced . | . . . . . . . Active Scanning Responses . | . . . . . . . Cargo Convoy Interrupts . | . . . . . . . Stealth | -11 -10 -9 -8 -8 -8 -8 --------- Run | Yrd Mat Mat Mat Gar Mat Sto Distress Signals 4 | . . . 2 . . 2 Communications Jammed . | . . . . . . . Distress Signals . | . . . . . . . Times Spotted 67 | . 11 19 19 7 1 10 Peak Tracking Total 7 | . 3 5 6 6 1 7 Tactical Retreats 2 | . . . 1 1 . . Traps | -11 -10 -9 -8 -8 -8 -8 ------- Run | Yrd Mat Mat Mat Gar Mat Sto Traps Triggered 2 | . . . 1 1 . . Indirectly . | . . . . . . . Trap Hack Attempts . | . . . . . . . Triggered . | . . . . . . . Disarmed . | . . . . . . . Reprogrammed . | . . . . . . . Reused . | . . . . . . . Traps Extracted . | . . . . . . . Installed . | . . . . . . . Triggered . | . . . . . . . Machines | -11 -10 -9 -8 -8 -8 -8 ---------- Run | Yrd Mat Mat Mat Gar Mat Sto Machines Disabled 7 | . 1 1 . . . 5 Max in Single Turn 3 | . 1 1 . . . 3 Machines Repaired . | . . . . . . . Machines Dismantled . | . . . . . . . Machines Sabotaged . | . . . . . . . Overloaded Fab Kills . | . . . . . . . Hacking | -11 -10 -9 -8 -8 -8 -8 --------- Run | Yrd Mat Mat Mat Gar Mat Sto Machines Accessed 10 | . 2 1 3 1 2 1 Terminals 8 | . 2 . 2 1 2 1 Fabricators . | . . . . . . . Repair Stations 1 | . . 1 . . . . Recycling Units . | . . . . . . . Scanalyzers . | . . . . . . . Garrison Access 1 | . . . 1 . . . Total Hacks 22 | . 3 4 4 2 8 1 Successful 19 | . 3 4 3 1 7 1 Failed 3 | . . . 1 1 1 . Catastrophic . | . . . . . . . Database Lockouts . | . . . . . . . Manual . | . . . . . . . Terminals 16 | . 3 . 2 2 8 1 Fabricators . | . . . . . . . Repair Stations 4 | . . 4 . . . . Recycling Units . | . . . . . . . Scanalyzers . | . . . . . . . Garrison Access 2 | . . . 2 . . . Terminal Hacks 13 | . 3 . 1 1 7 1 Prototype ID Bank 1 | . . . . . 1 . Open Door 1 | . . . . . . 1 Emergency Access Points 1 | . . . . . 1 . Alert Level 2 | . 1 . . . 1 . Unreport Threat 1 | . . . . . 1 . Locate Traps 1 | . 1 . . . . . Dispatch Records 1 | . . . . . 1 . Transport Status 2 | . . . 1 . 1 . Hauler Manifests 1 | . 1 . . . . . Zone Layout 1 | . . . . . 1 . Garrison Registry 1 | . . . . 1 . . Fabricator Hacks . | . . . . . . . Repair Station Hacks 4 | . . 4 . . . . Scan Component 2 | . . 2 . . . . Repair 2 | . . 2 . . . . Recycling Unit Hacks . | . . . . . . . Scanalyzer . | . . . . . . . Garrison Access Hacks 2 | . . . 2 . . . Unlock Access 1 | . . . 1 . . . Coupler Status 1 | . . . 1 . . . Unauthorized Hacks . | . . . . . . . Terminals . | . . . . . . . Fabricators . | . . . . . . . Repair Stations . | . . . . . . . Recycling Units . | . . . . . . . Scanalyzers . | . . . . . . . Garrison Access . | . . . . . . . Data Cores Recovered . | . . . . . . . Used . | . . . . . . . Hacking Detections 5 | . 1 . 2 1 1 . Full Trace Events . | . . . . . . . Feedback Events . | . . . . . . . Feedback Blocked . | . . . . . . . Robot Schematics Acquired . | . . . . . . . Robots Built . | . . . . . . . Authchips . | . . . . . . . Time . | . . . . . . . Total Robot Build Rating . | . . . . . . . Part Schematics Acquired . | . . . . . . . Parts Built . | . . . . . . . Authchips . | . . . . . . . Time . | . . . . . . . Total Part Build Rating . | . . . . . . . Parts Repaired 2 | . . 2 . . . . Time 58 | . . 58 . . . . Parts Recycled . | . . . . . . . Recycled Matter . | . . . . . . . Retrieved Matter . | . . . . . . . Retrieved Components . | . . . . . . . Parts Scanalyzed . | . . . . . . . Part Schematics Acquired . | . . . . . . . Parts Damaged . | . . . . . . . Bothacking | -11 -10 -9 -8 -8 -8 -8 ------------ Run | Yrd Mat Mat Mat Gar Mat Sto Used RIF Installer . | . . . . . . . Robots Hacked . | . . . . . . . Non-combat . | . . . . . . . Combat . | . . . . . . . Robot Hacks Applied . | . . . . . . . Relay Couplers Released . | . . . . . . . Fabnet Peak Effective % . | . . . . . . . Robots Rewired . | . . . . . . . Allies Hacked . | . . . . . . . Hacks Repelled . | . . . . . . . Allies | -11 -10 -9 -8 -8 -8 -8 -------- Run | Yrd Mat Mat Mat Gar Mat Sto Total Allies . | . . . . . . . Largest Group . | . . . . . . . Highest-Rated Group . | . . . . . . . Highest-Rated Ally . | . . . . . . . Total Orders 6 | . . . . . . 6 STAY 1 | . . . . . . 1 ROAM 1 | . . . . . . 1 EXPLORE 4 | . . . . . . 4 Ally Attacks . | . . . . . . . Total Damage . | . . . . . . . Kills . | . . . . . . . Allies Corrupted . | . . . . . . . Allies Melted . | . . . . . . . Intel | -11 -10 -9 -8 -8 -8 -8 ------- Run | Yrd Mat Mat Mat Gar Mat Sto Robot Analysis Total . | . . . . . . . Derelict Logs Recovered . | . . . . . . . Drone Launches 3 | . . . . . . 3 Drone Recoveries 2 | . . . . . . 2 Exploration | -11 -10 -9 -8 -8 -8 -8 ------------- Run | Yrd Mat Mat Mat Gar Mat Sto Turns Passed 2710 | 71 551 715 1009 45 72 247 Spaces Moved 1319 | 61 338 315 306 79 113 107 Core 21 | 9 . . . . . 12 Treads 789 | 3 165 315 306 . . . Legs 3 | . . . . . . 3 Wheels 222 | 49 173 . . . . . Hover . | . . . . . . . Flight 284 | . . . . 79 113 92 Fastest Speed 30 | 50 80 160 160 30 30 32 Average Speed 122 | 86 124 160 175 30 30 39 Slowest Speed 240 | 160 160 160 240 30 32 130 Overloaded Moves . | . . . . . . . Propulsion Burnouts . | . . . . . . . Robots Hopped . | . . . . . . . Cave-ins Triggered . | . . . . . . . Exploration Rate (%) 28 | 3 54 42 28 28 11 30 Regions Visited 6 Branch Regions 1 Pre-discovered Areas . | . . . . . . . Known Exits Taken 4 | . 1 1 1 . 1 . Unknown Exits Taken 1 | 1 . . . . . . Scrap Searched . | . . . . . . . Spaces Dug . | . . . . . . . Terrain Destroyed 93 | . 21 . . . . 72 Melee . | . . . . . . . Projectile . | . . . . . . . AOE 93 | . 21 . . . . 72 Terrain Rammed . | . . . . . . . Walls Destroyed . | . . . . . . . Machines Disabled . | . . . . . . . Actions | -11 -10 -9 -8 -8 -8 -8 --------- Run | Yrd Mat Mat Mat Gar Mat Sto Total 2146 | 75 424 455 673 100 134 285 Wait 556 | . 26 79 291 . 5 155 Move 1314 | 60 337 314 306 78 112 107 Hop . | . . . . . . . Pick Up 29 | 3 18 7 1 . . . Fast Attach 21 | 7 2 5 2 . 3 2 Attach 9 | 2 . 3 1 3 . . Detach . | . . . . . . . Swap 17 | . 5 3 3 5 1 . Drop 23 | 2 7 6 . 7 . 1 Fire 163 | 1 29 37 63 . 13 20 Melee . | . . . . . . . Ram . | . . . . . . . Kick . | . . . . . . . Crush 7 | . . 1 6 . . . Escape Stasis 7 | . . . . 7 . . Rewire . | . . . . . . . Trap . | . . . . . . . Miscellaneous . | . . . . . . . Route ------- -11/Scrapyard -10/Materials (discovered 2 exits: *Mat x2) -9/Materials (discovered 2 exits: *Mat / *Min) -8/Materials (discovered 2 exits: *Sto / Gar) -8/Garrison (discovered 3 exits: *Mat x3) -8/Materials -8/Storage History --------- Turn | Location | Event 37 | -11/Scrapyard | Discovered new exit (range 15) 72 | -11/Scrapyard | Entered Materials 184 | -10/Materials | Discovered new exit (range 13) 306 | -10/Materials | Build established: Mutant 486 | -10/Materials | Discovered new exit (range 15) 611 | -10/Materials | Identified exit to Materials 623 | -10/Materials | Entered another Materials area 623 | -9/Materials | Evolved 2 slots: Utility x2 770 | -9/Materials | Discovered new exit (range 10) 791 | -9/Materials | Identified exit to Mines 1182 | -9/Materials | Repaired Imp. Treads 1209 | -9/Materials | Repaired Beam Cannon 1294 | -9/Materials | Discovered new exit (range 10) 1335 | -9/Materials | Identified exit to Materials 1338 | -9/Materials | Entered another Materials area 1338 | -8/Materials | Evolved 2 slots: Propulsion x1, Utility x1 1453 | -8/Materials | Discovered new exit (range 17) 1501 | -8/Materials | Identified exit to Storage 1607 | -8/Materials | Build established: Skirmisher 1965 | -8/Materials | Lost 4 parts (1n2u1w) 2173 | -8/Materials | Build established: Mutant 2347 | -8/Materials | Identified exit to Garrison 2347 | -8/Materials | Entered Garrison 2367 | -8/Garrison | Discovered new exit (range 41) 2367 | -8/Garrison | Discovered new exit (range 57) 2367 | -8/Garrison | Discovered new exit (range 70) 2377 | -8/Garrison | Triggered checkpoint 2392 | -8/Garrison | Entered Materials 2421 | -8/Materials | Discovered exit to Storage (range 6) 2464 | -8/Materials | Entered Storage 2685 | -8/Storage | Garrison activated, responded to threat 2698 | -8/Storage | Core integrity fell below 50% 2711 | -8/Storage | Self-destructed Last Messages --------------- 02694_ U-05 Engineer builds a Wall. 02695_ Titanium Leg destroyed. 02695_ Destroyed Titanium Leg. 02695_ W-25 Informer sends out distress signal. 02697_ Compression Vault explodes. 02697_ Transfer Shaft disabled. 02697_ Compression Vault explodes. 02697_ U-05 Engineer destroyed. 02697_ Y-45 Defender destroyed. 02697_ VTOL Module destroyed. 02697_ Destroyed VTOL Module. 02698_ K-01 Serf collects debris. 02699_ Acquired 7 matter. 02700_ K-01 Serf collects debris. 02704_ Hacking Suite destroyed. 02705_ K-01 Serf collects debris. 02706_ Mni. Grenade Launcher destroyed. 02708_ K-01 Serf collects debris. 02710_ The unstable cave ceiling collapses. 02710_ K-01 Serf collects debris. Map ----- +----------------------------------------------------+ | ??????????????????????????????????????????????? | | ??????????????????????????????????????????????? | | ??????????????????????????????????????????????? | | ??????????????????????????????????????????????? | | ?????????????""???????????????????????????????? | | ????????????? ???????????????????????????????? | | ????????????T ???????????????????????????????? | | ???????????## ####?#########?????????????????? | | ???????????? # """ """ ##????????????????? | | ???????????? + """ """ Y##???????????????? | | ???????????"" #? """ """ ##??????????????? | | ??????????""" #?? ###????????????? | | ???????? """" #??? #????????????? | | ??????? """" ###### # #?????????????? | | ??????? """" # ###???????????? | | ??????" "" #???????????? | | ??????# #???????????? | | ??????# " #???????????? | | ??????+ ??# " #???????????? | | ??????# #?# #???????????? | | ??????# #?# # kg #???????????? | | ??????# #?# ### #/#??### ?????? | | ??????# #?# # # ?? | | ??????# #?# # g ?? | | ??????# #?# + ? | | ?###??# #?# ### #@ ?? | | ?? ?# ###+######## """ k a ?? | | ???"" # # ## """ "k ??? | | ????? + + """" ## """ """ ## ??? | | ??????# # "??"" ## #? ??? | | ??????# # "???"" ############?? ???? | | ??????# + ""???" #????????????? ???? | | ??????# # ""??" #?????????????? ????? | | ??????# # """" #??????????????? ????? | | ??????# # #???????????????? ????? | | ??????# ###########?????????????????? ?????? | | ??????# ##########??????????????????????????? | | ??????# # #??????????????????????????? | | ??????# # """ ##?????????????????????????? | | ??????# # """ ""#????????????????????????? | | ??????# # """ ""#????????????????????????? | | ??????# / T"#????????????????????????? | | ??????# # """ ""#????????????????????????? | | ?????## # """ ""#????????????????????????? | | ?????# """ ##?????????????????????????? | | ?##### #??????????????????????????? | | ?#! !# ##########?????????????????????????? | | ?#! !# #?????????????????????????? | | ?#! !# """" #?????????????????????????? | | ?#! !# "??"" #?????????????????????????? | +----------------------------------------------------+ Best States ------------- Heat Dissipation 31 Energy Generation 14 Energy Capacity 265 Matter Stores 300 Matter Capacity 300 Sight Range 20 Robot Scan Range 14 Terrain Scan Range 16 Terrain Scan Density 10 Additional Mass Support 6 Armor Coverage 150 Evasion (%) 64 Recoil Reduction 3 Offensive Hacking 30 Item Schematics ----------------- None Robot Schematics ------------------ None Fabricated ------------ Nothing Alien Tech Used ----------------- None Achievements -------------- None Challenges ------------ None Game ------ Seed OmegaPowerCarapace Manual? 0 Play Time 00:44:32 Cumulative 11.4 hours Start 2024.04.13 @ 20:13:44 End 2024.04.13 @ 23:36:40 Sessions 3 Manual Loads 0 Difficulty Rogue Special Mode None Game No. 17 Rogue 17 Adventurer 0 Explorer 0 Win Type - Total 0 Types 0/0/0/0/0/0/0/0/0 Lore% 6 Gallery% 17 Achievement% 14 Wizard Run 0 Options --------- Layout 0 ASCII 0 Keyboard 0 Movement Mouse Keybinds 0 Fullscreen 2 Font 24/Smallcaps Map View 113x50 Zoom Use 0% Tactical HUD 1 Map Filters NONE Filters NONE Steam 1 RUN: d9c9f2a6-01c7-4ef6-bfb7-57e9b7be6495